[Event "*** Titled Tuesday Blitz AM"]
[Site "Chess.com"]
[Date "2020.01.07"]
[Round "3"]
[White "GMBenjaminBok"]
[Black "Rikikits"]
[Result "0-1"]
[WhiteElo "2863"]
[BlackElo "2719"]
[TimeControl "180+2"]
[EndTime "9:38:41 PST"]
[Termination "Rikikits won by resignation"]

1. Nf3 {[%clk 0:03:01.9]} 1... f5 {[%clk 0:03:00.5]} 2. g3 {[%clk 0:03:02.4]}
2... Nf6 {[%clk 0:03:01.1]} 3. Bg2 {[%clk 0:03:04]} 3... g6 {[%clk 0:03:03]} 4.
O-O {[%clk 0:03:05.1]} 4... Bg7 {[%clk 0:03:04.9]} 5. d4 {[%clk 0:03:06.2]} 5...
O-O {[%clk 0:03:06.8]} 6. c4 {[%clk 0:03:07.1]} 6... d6 {[%clk 0:03:08.5]} 7. b3
{[%clk 0:03:08.4]} 7... Nc6 {[%clk 0:03:10.2]} 8. Bb2 {[%clk 0:03:09]} 8... Ne4
{[%clk 0:03:08.8]} 9. Nbd2 {[%clk 0:03:09.8]} 9... Nxd2 {[%clk 0:03:01.8]} 10.
Qxd2 {[%clk 0:03:10.7]} 10... e5 {[%clk 0:02:35.7]} 11. dxe5 {[%clk 0:03:01.4]}
11... dxe5 {[%clk 0:02:37.6]} 12. Qd5+ {[%clk 0:02:11.2]} 12... Kh8 {[%clk
0:02:38.3]} 13. Qxd8 {[%clk 0:01:58.5]} 13... Rxd8 {[%clk 0:02:40.2]} 14. Ng5
{[%clk 0:01:57.6]} 14... Re8 {[%clk 0:02:25.6]} 15. Bxc6 {[%clk 0:01:54.4]}
15... bxc6 {[%clk 0:02:25.8]} 16. Rfd1 {[%clk 0:01:50.8]} 16... h6 {[%clk
0:02:20.5]} 17. Nf3 {[%clk 0:01:49.4]} 17... a5 {[%clk 0:02:11.7]} 18. Rd2
{[%clk 0:01:40.9]} 18... a4 {[%clk 0:02:10.5]} 19. Rad1 {[%clk 0:01:41.5]} 19...
axb3 {[%clk 0:02:09.9]} 20. axb3 {[%clk 0:01:43]} 20... Bf6 {[%clk 0:01:52.9]}
21. Nxe5 {[%clk 0:01:22.7]} 21... Rxe5 {[%clk 0:01:38.1]} 22. Rd8+ {[%clk
0:01:18.9]} 22... Kg7 {[%clk 0:01:36.4]} 23. Bxe5 {[%clk 0:01:19]} 23... Bxe5
{[%clk 0:01:38.3]} 24. R1d7+ {[%clk 0:00:39.4]} 24... Bxd7 {[%clk 0:01:37.3]}
25. Rxa8 {[%clk 0:00:40.5]} 25... c5 {[%clk 0:01:33.6]} 26. f3 {[%clk
0:00:35.6]} 26... f4 {[%clk 0:01:31.6]} 27. Kf2 {[%clk 0:00:34.2]} 27... g5
{[%clk 0:01:28.3]} 28. Rd8 {[%clk 0:00:26.4]} 28... Be6 {[%clk 0:01:25.4]} 29.
gxf4 {[%clk 0:00:11.9]} 29... gxf4 {[%clk 0:01:26.1]} 30. Re8 {[%clk 0:00:07.7]}
30... Kf7 {[%clk 0:01:26.2]} 31. Rd8 {[%clk 0:00:08.6]} 31... Ke7 {[%clk
0:01:25.4]} 32. Ra8 {[%clk 0:00:08.8]} 32... h5 {[%clk 0:01:24]} 33. Rb8 {[%clk
0:00:08.6]} 33... h4 {[%clk 0:01:24.6]} 34. Ra8 {[%clk 0:00:08.5]} 34... h3
{[%clk 0:01:25.5]} 35. Rb8 {[%clk 0:00:08.6]} 35... Bd4+ {[%clk 0:01:26.4]} 36.
Kf1 {[%clk 0:00:10]} 36... Bf5 {[%clk 0:01:23.8]} 37. Ra8 {[%clk 0:00:06.5]}
37... Bc2 {[%clk 0:01:19.1]} 38. Rb8 {[%clk 0:00:07.6]} 38... Be3 {[%clk
0:01:14.8]} 39. Rb7 {[%clk 0:00:07.8]} 39... Kd6 {[%clk 0:01:13.9]} 40. Rb8
{[%clk 0:00:09.2]} 40... Kc6 {[%clk 0:01:13.3]} 41. Rb5 {[%clk 0:00:07.8]} 41...
Bd2 {[%clk 0:01:11.6]} 42. Kf2 {[%clk 0:00:08.2]} 42... Bb4 {[%clk 0:01:11.8]}
43. e4 {[%clk 0:00:09.1]} 43... Bxb3 {[%clk 0:01:11.3]} 44. Rb8 {[%clk
0:00:08.4]} 44... Bxc4 {[%clk 0:01:12.5]} 45. Rh8 {[%clk 0:00:09.8]} 45... Be6
{[%clk 0:01:13.1]} 46. Rf8 {[%clk 0:00:09.2]} 46... Bd2 {[%clk 0:01:12.8]} 47.
Rd8 {[%clk 0:00:09.1]} 47... Be3+ {[%clk 0:01:13.2]} 48. Kf1 {[%clk 0:00:09.5]}
48... Kb5 {[%clk 0:01:02.8]} 49. Ke2 {[%clk 0:00:10.1]} 49... Kc4 {[%clk
0:01:01.1]} 50. Re8 {[%clk 0:00:10.6]} 50... Bd7 {[%clk 0:01:00.6]} 51. Re7
{[%clk 0:00:11.8]} 51... Bb5 {[%clk 0:01:01.8]} 52. Rxc7 {[%clk 0:00:13.3]}
52... Kc3+ {[%clk 0:01:01.9]} 53. Ke1 {[%clk 0:00:14.4]} 53... Kd4 {[%clk
0:00:55.6]} 54. Rh7 {[%clk 0:00:14.2]} 54... c4 {[%clk 0:00:54.3]} 55. Rh5
{[%clk 0:00:15]} 55... c3 {[%clk 0:00:37.8]} 56. Rxb5 {[%clk 0:00:05]} 56... c2
{[%clk 0:00:38.9]} 57. Rd5+ {[%clk 0:00:04.2]} 57... Kc4 {[%clk 0:00:34.2]} 58.
Rd1 {[%clk 0:00:04.8]} 58... cxd1=Q+ {[%clk 0:00:34.6]} 59. Kxd1 {[%clk
0:00:06.7]} 59... Bg1 {[%clk 0:00:35.5]} 60. Ke2 {[%clk 0:00:05.8]} 60... Bxh2
{[%clk 0:00:36]} 0-1

[Event "*** Titled Tuesday Blitz AM"]
[Site "Chess.com"]
[Date "2020.01.07"]
[Round "3"]
[White "Vuk2000"]
[Black "boasovietica"]
[Result "1-0"]
[WhiteElo "2697"]
[BlackElo "2440"]
[TimeControl "180+2"]
[EndTime "9:38:54 PST"]
[Termination "Vuk2000 won by resignation"]

1. d4 {[%clk 0:03:01.9]} 1... Nf6 {[%clk 0:03:00.2]} 2. Bg5 {[%clk 0:03:02.8]}
2... e6 {[%clk 0:02:59.6]} 3. e4 {[%clk 0:03:03.7]} 3... c5 {[%clk 0:03:00]} 4.
d5 {[%clk 0:03:04.3]} 4... e5 {[%clk 0:03:00.5]} 5. Nc3 {[%clk 0:02:54.7]} 5...
d6 {[%clk 0:03:01.3]} 6. g3 {[%clk 0:02:49.9]} 6... Be7 {[%clk 0:03:01.6]} 7. h4
{[%clk 0:02:44.3]} 7... O-O {[%clk 0:02:59]} 8. Bg2 {[%clk 0:02:43.1]} 8... b5
{[%clk 0:02:36.1]} 9. Nxb5 {[%clk 0:02:29]} 9... Qb6 {[%clk 0:02:35.9]} 10. c4
{[%clk 0:02:28.9]} 10... a6 {[%clk 0:02:32.8]} 11. Nc3 {[%clk 0:02:29.4]} 11...
Qxb2 {[%clk 0:02:26.1]} 12. Nge2 {[%clk 0:02:27.9]} 12... Qb7 {[%clk 0:02:07.4]}
13. O-O {[%clk 0:02:17.9]} 13... Nbd7 {[%clk 0:02:07.9]} 14. Qc1 {[%clk
0:02:08.2]} 14... Rd8 {[%clk 0:02:00.5]} 15. Rb1 {[%clk 0:02:06.9]} 15... Qc7
{[%clk 0:02:01.7]} 16. Na4 {[%clk 0:02:03.1]} 16... Nf8 {[%clk 0:01:52.3]} 17.
Bd2 {[%clk 0:02:00.1]} 17... Rb8 {[%clk 0:01:39.4]} 18. Ba5 {[%clk 0:01:30.7]}
18... Rxb1 {[%clk 0:01:38.9]} 19. Bxc7 {[%clk 0:01:30.5]} 19... Rxc1 {[%clk
0:01:39.6]} 20. Nxc1 {[%clk 0:01:20.8]} 20... Rd7 {[%clk 0:01:40.2]} 21. Ba5
{[%clk 0:01:21.9]} 21... Rb7 {[%clk 0:01:33.5]} 22. Nb6 {[%clk 0:01:23.1]} 22...
Bd7 {[%clk 0:01:31.2]} 23. Nd3 {[%clk 0:01:09.9]} 23... Be8 {[%clk 0:01:27.1]}
24. Nc8 {[%clk 0:01:01.9]} 24... Ng6 {[%clk 0:01:07]} 25. Nxe7+ {[%clk
0:00:52.6]} 25... Nxe7 {[%clk 0:01:06.6]} 26. f4 {[%clk 0:00:52.5]} 26... Nd7
{[%clk 0:00:57.3]} 27. Bh3 {[%clk 0:00:42.4]} 27... f6 {[%clk 0:00:52.9]} 28.
Be6+ {[%clk 0:00:38]} 28... Kh8 {[%clk 0:00:48.9]} 29. Bd8 {[%clk 0:00:33]}
29... Nf8 {[%clk 0:00:43.4]} 30. f5 {[%clk 0:00:25.9]} 30... Ng8 {[%clk
0:00:25.2]} 31. Ba5 {[%clk 0:00:20.1]} 31... Ba4 {[%clk 0:00:20.8]} 32. Rc1
{[%clk 0:00:18.6]} 32... Nd7 {[%clk 0:00:19.3]} 33. Kf2 {[%clk 0:00:17.6]} 33...
Nh6 {[%clk 0:00:17.1]} 34. Kf3 {[%clk 0:00:18.2]} 34... g6 {[%clk 0:00:16.5]}
35. g4 {[%clk 0:00:18.4]} 35... Kg7 {[%clk 0:00:16.8]} 36. g5 {[%clk 0:00:19.1]}
36... Nf7 {[%clk 0:00:17]} 37. Bxf7 {[%clk 0:00:12.2]} 37... Kxf7 {[%clk
0:00:17.8]} 38. Bc3 {[%clk 0:00:13.9]} 38... Kg7 {[%clk 0:00:14.1]} 39. Nf2
{[%clk 0:00:14.5]} 39... Kf7 {[%clk 0:00:09]} 40. Ng4 {[%clk 0:00:13.3]} 40...
Kg7 {[%clk 0:00:09.7]} 41. Rg1 {[%clk 0:00:13.7]} 41... Bc2 {[%clk 0:00:08.9]}
42. Ne3 {[%clk 0:00:09]} 42... Ba4 {[%clk 0:00:07.6]} 43. gxf6+ {[%clk
0:00:05.1]} 43... Nxf6 {[%clk 0:00:08.1]} 44. fxg6 {[%clk 0:00:06.8]} 44... hxg6
{[%clk 0:00:09.1]} 45. Nf5+ {[%clk 0:00:08.4]} 45... Kh7 {[%clk 0:00:08.5]} 46.
Nxd6 {[%clk 0:00:09.5]} 46... Rd7 {[%clk 0:00:09.6]} 47. Nc8 {[%clk 0:00:10.9]}
47... Bc2 {[%clk 0:00:09.4]} 48. Bxe5 {[%clk 0:00:07]} 48... Nxe4 {[%clk
0:00:09.7]} 49. Ke3 {[%clk 0:00:08.5]} 49... Rf7 {[%clk 0:00:06]} 50. Rc1 {[%clk
0:00:08.8]} 50... Rf2 {[%clk 0:00:05]} 51. Nb6 {[%clk 0:00:09.4]} 51... Rd2
{[%clk 0:00:05.1]} 52. Rxc2 {[%clk 0:00:09]} 52... Rxc2 {[%clk 0:00:05.3]} 53.
Kxe4 {[%clk 0:00:10.5]} 53... Rxa2 {[%clk 0:00:06.7]} 54. d6 {[%clk 0:00:10.8]}
54... Kg8 {[%clk 0:00:07.4]} 55. d7 {[%clk 0:00:11.4]} 55... Rd2 {[%clk
0:00:08.4]} 56. Bf6 {[%clk 0:00:12.1]} 1-0

[Event "*** Titled Tuesday Blitz AM"]
[Site "Chess.com"]
[Date "2020.01.07"]
[Round "3"]
[White "DrVelja"]
[Black "Lunaticx"]
[Result "1-0"]
[WhiteElo "2713"]
[BlackElo "2839"]
[TimeControl "180+2"]
[EndTime "9:38:57 PST"]
[Termination "DrVelja won by resignation"]

1. e4 {[%clk 0:03:01.9]} 1... c5 {[%clk 0:03:00.5]} 2. Nf3 {[%clk 0:03:02.8]}
2... d6 {[%clk 0:03:02]} 3. d4 {[%clk 0:03:03.6]} 3... cxd4 {[%clk 0:03:03.9]}
4. Nxd4 {[%clk 0:03:05]} 4... Nf6 {[%clk 0:03:04.9]} 5. Nc3 {[%clk 0:03:06.3]}
5... a6 {[%clk 0:03:06.5]} 6. Bd3 {[%clk 0:03:06.4]} 6... g6 {[%clk 0:03:06.4]}
7. f3 {[%clk 0:03:06]} 7... Bg7 {[%clk 0:03:05.5]} 8. Be3 {[%clk 0:03:06.9]}
8... O-O {[%clk 0:03:01.5]} 9. Qd2 {[%clk 0:03:08.2]} 9... Nc6 {[%clk
0:02:53.5]} 10. O-O-O {[%clk 0:02:39.2]} 10... d5 {[%clk 0:02:43.1]} 11. h4
{[%clk 0:02:16.4]} 11... dxe4 {[%clk 0:02:00.5]} 12. Nxc6 {[%clk 0:02:11.4]}
12... bxc6 {[%clk 0:02:02.4]} 13. Nxe4 {[%clk 0:01:56.6]} 13... Be6 {[%clk
0:01:49.1]} 14. h5 {[%clk 0:01:47.5]} 14... Rb8 {[%clk 0:01:35]} 15. c3 {[%clk
0:01:30.1]} 15... Qa5 {[%clk 0:01:14.8]} 16. Nxf6+ {[%clk 0:00:54.9]} 16... Bxf6
{[%clk 0:01:11]} 17. hxg6 {[%clk 0:00:52.8]} 17... fxg6 {[%clk 0:01:11.6]} 18.
Qc2 {[%clk 0:00:15.1]} 18... Rxb2 {[%clk 0:00:34.4]} 19. Qxb2 {[%clk 0:00:10.1]}
19... Bxc3 {[%clk 0:00:35.1]} 20. Qb6 {[%clk 0:00:07.1]} 20... Qxa2 {[%clk
0:00:33.1]} 21. Bd4 {[%clk 0:00:04.4]} 21... Qa1+ {[%clk 0:00:16.1]} 22. Kc2
{[%clk 0:00:05.5]} 22... Bxd4 {[%clk 0:00:15.3]} 23. Rxa1 {[%clk 0:00:06.5]}
23... Bxb6 {[%clk 0:00:16.1]} 24. Rxa6 {[%clk 0:00:07.7]} 24... Bd4 {[%clk
0:00:15]} 25. Rxc6 {[%clk 0:00:09]} 25... Bf7 {[%clk 0:00:11.5]} 26. Bc4 {[%clk
0:00:08.4]} 26... Bf6 {[%clk 0:00:12.5]} 27. Bxf7+ {[%clk 0:00:08.8]} 27... Rxf7
{[%clk 0:00:14.4]} 28. Kd3 {[%clk 0:00:09.7]} 28... Kg7 {[%clk 0:00:15.7]} 29.
Ke4 {[%clk 0:00:09]} 29... Rf8 {[%clk 0:00:17.2]} 30. Rhc1 {[%clk 0:00:08.8]}
30... Ra8 {[%clk 0:00:16.8]} 31. f4 {[%clk 0:00:09.5]} 31... Ra4+ {[%clk
0:00:17.3]} 32. R6c4 {[%clk 0:00:10.4]} 32... Ra2 {[%clk 0:00:17.3]} 33. R1c2
{[%clk 0:00:11.3]} 33... Ra3 {[%clk 0:00:18.6]} 34. Rc5 {[%clk 0:00:10.3]} 34...
h5 {[%clk 0:00:17.1]} 35. Rd5 {[%clk 0:00:07.1]} 35... Ra4+ {[%clk 0:00:17.2]}
36. Ke3 {[%clk 0:00:07.9]} 36... Ra3+ {[%clk 0:00:18.4]} 37. Rd3 {[%clk
0:00:09.3]} 37... Ra4 {[%clk 0:00:18.7]} 38. Kf3 {[%clk 0:00:10.7]} 38... Ra1
{[%clk 0:00:18.7]} 39. Re2 {[%clk 0:00:11]} 39... Rf1+ {[%clk 0:00:18.9]} 40.
Rf2 {[%clk 0:00:12.6]} 40... Re1 {[%clk 0:00:18.6]} 41. Re3 {[%clk 0:00:12.6]}
41... Ra1 {[%clk 0:00:17.3]} 42. g3 {[%clk 0:00:13.5]} 42... Bd4 {[%clk
0:00:17.6]} 43. Rxe7+ {[%clk 0:00:14.3]} 43... Kf6 {[%clk 0:00:18.5]} 44. Rfe2
{[%clk 0:00:15.7]} 44... Ra3+ {[%clk 0:00:17.2]} 45. Kg2 {[%clk 0:00:16]} 45...
Kf5 {[%clk 0:00:17.5]} 46. R7e4 {[%clk 0:00:13.5]} 46... Rd3 {[%clk 0:00:17.3]}
47. Re6 {[%clk 0:00:10]} 47... Ra3 {[%clk 0:00:13.3]} 48. Rd6 {[%clk 0:00:10]}
48... Ra4 {[%clk 0:00:12.8]} 49. Rd5+ {[%clk 0:00:10.7]} 49... Kf6 {[%clk
0:00:14.1]} 50. Rb5 {[%clk 0:00:06.9]} 50... Ra3 {[%clk 0:00:13.6]} 51. Rc2
{[%clk 0:00:05.7]} 51... Bc3 {[%clk 0:00:10.6]} 52. Rc5 {[%clk 0:00:07]} 52...
Bd4 {[%clk 0:00:11.9]} 53. Rd5 {[%clk 0:00:08.3]} 53... Be3 {[%clk 0:00:08.2]}
54. Rc6+ {[%clk 0:00:07.5]} 54... Kg7 {[%clk 0:00:06.8]} 55. Rd7+ {[%clk
0:00:09]} 55... Kh6 {[%clk 0:00:07.2]} 56. Rdd6 {[%clk 0:00:10.4]} 1-0

[Event "*** Titled Tuesday Blitz AM"]
[Site "Chess.com"]
[Date "2020.01.07"]
[Round "3"]
[White "David_Paravyan"]
[Black "SavelijTartakover"]
[Result "1-0"]
[WhiteElo "2870"]
[BlackElo "2700"]
[TimeControl "180+2"]
[EndTime "9:39:05 PST"]
[Termination "David_Paravyan won by resignation"]

1. e4 {[%clk 0:03:01.9]} 1... e6 {[%clk 0:02:58.9]} 2. d4 {[%clk 0:03:02.7]}
2... d5 {[%clk 0:02:59.9]} 3. Nc3 {[%clk 0:03:03.8]} 3... Nf6 {[%clk 0:03:00]}
4. Bg5 {[%clk 0:03:04]} 4... dxe4 {[%clk 0:03:00.1]} 5. Nxe4 {[%clk 0:03:05.9]}
5... Nbd7 {[%clk 0:03:00.4]} 6. Nf3 {[%clk 0:03:06.3]} 6... Be7 {[%clk 0:03:01]}
7. Nxf6+ {[%clk 0:03:05.7]} 7... Bxf6 {[%clk 0:03:01.8]} 8. Bxf6 {[%clk
0:03:00.9]} 8... Nxf6 {[%clk 0:03:02.1]} 9. Qd3 {[%clk 0:03:01.3]} 9... O-O
{[%clk 0:02:57]} 10. O-O-O {[%clk 0:03:02.4]} 10... b6 {[%clk 0:02:57.2]} 11. h4
{[%clk 0:02:50.5]} 11... Bb7 {[%clk 0:02:56.2]} 12. Ne5 {[%clk 0:02:51.3]} 12...
c5 {[%clk 0:02:46.8]} 13. dxc5 {[%clk 0:02:37.2]} 13... Qc7 {[%clk 0:02:27.6]}
14. Qd6 {[%clk 0:02:30.3]} 14... Qxc5 {[%clk 0:02:23.8]} 15. Qxc5 {[%clk
0:02:31.2]} 15... bxc5 {[%clk 0:02:22.7]} 16. Rh3 {[%clk 0:02:26.6]} 16... Ne4
{[%clk 0:02:14.8]} 17. Rb3 {[%clk 0:02:27.8]} 17... Bc8 {[%clk 0:01:46.3]} 18.
Re3 {[%clk 0:01:23.3]} 18... Nf6 {[%clk 0:01:05.4]} 19. Rc3 {[%clk 0:00:59.2]}
19... Ne4 {[%clk 0:00:51.5]} 20. Re3 {[%clk 0:00:56.5]} 20... Nf6 {[%clk
0:00:50]} 21. Nd3 {[%clk 0:00:57.8]} 21... Nd5 {[%clk 0:00:43.1]} 22. Re4 {[%clk
0:00:53]} 22... Ba6 {[%clk 0:00:31.4]} 23. Nxc5 {[%clk 0:00:45.7]} 23... Bxf1
{[%clk 0:00:32.1]} 24. Rxf1 {[%clk 0:00:47.6]} 24... Rfc8 {[%clk 0:00:33.1]} 25.
Na6 {[%clk 0:00:29]} 25... Kf8 {[%clk 0:00:25.7]} 26. Rd1 {[%clk 0:00:28]} 26...
h5 {[%clk 0:00:20]} 27. a3 {[%clk 0:00:24.9]} 27... g6 {[%clk 0:00:15.1]} 28. g3
{[%clk 0:00:25.2]} 28... Kg7 {[%clk 0:00:15.4]} 29. Kb1 {[%clk 0:00:24.6]} 29...
Rd8 {[%clk 0:00:15.3]} 30. Red4 {[%clk 0:00:21.7]} 30... Rdc8 {[%clk 0:00:14.6]}
31. c4 {[%clk 0:00:20]} 31... Nf6 {[%clk 0:00:15.1]} 32. b3 {[%clk 0:00:15.8]}
32... Ng4 {[%clk 0:00:14.2]} 33. R4d2 {[%clk 0:00:12]} 33... Ne5 {[%clk
0:00:14.7]} 34. Kb2 {[%clk 0:00:09.4]} 34... Rc6 {[%clk 0:00:12.5]} 35. Rd6
{[%clk 0:00:08.7]} 35... Rac8 {[%clk 0:00:11.9]} 36. Rxc6 {[%clk 0:00:08.4]}
36... Rxc6 {[%clk 0:00:13.2]} 37. Nb4 {[%clk 0:00:09.7]} 37... Rc7 {[%clk
0:00:14.4]} 38. Kc3 {[%clk 0:00:10.2]} 38... Ng4 {[%clk 0:00:14.9]} 39. Rd2
{[%clk 0:00:09.6]} 39... a5 {[%clk 0:00:15]} 40. Nc2 {[%clk 0:00:07.4]} 40... e5
{[%clk 0:00:15.5]} 41. Ne3 {[%clk 0:00:08.1]} 41... Nf6 {[%clk 0:00:13.4]} 42.
f3 {[%clk 0:00:07.3]} 42... e4 {[%clk 0:00:12.9]} 43. Nd5 {[%clk 0:00:08.2]}
43... Nxd5+ {[%clk 0:00:12.5]} 44. Rxd5 {[%clk 0:00:09.7]} 44... exf3 {[%clk
0:00:13.2]} 45. Rd3 {[%clk 0:00:10.7]} 45... Kf6 {[%clk 0:00:09.9]} 46. Rxf3+
{[%clk 0:00:11.4]} 46... Ke5 {[%clk 0:00:11.4]} 47. b4 {[%clk 0:00:12]} 47...
Ke4 {[%clk 0:00:11.2]} 48. Rf6 {[%clk 0:00:11.9]} 48... axb4+ {[%clk 0:00:10.4]}
49. axb4 {[%clk 0:00:13.8]} 49... Ke5 {[%clk 0:00:10.3]} 50. Ra6 {[%clk
0:00:15.4]} 50... Kf5 {[%clk 0:00:09.7]} 51. c5 {[%clk 0:00:14.3]} 51... Kg4
{[%clk 0:00:10.3]} 52. Kc4 {[%clk 0:00:06]} 52... Kxg3 {[%clk 0:00:11]} 53. b5
{[%clk 0:00:07.6]} 53... Kxh4 {[%clk 0:00:11.8]} 54. b6 {[%clk 0:00:09.2]} 54...
Re7 {[%clk 0:00:07.4]} 55. c6 {[%clk 0:00:10.2]} 55... Re1 {[%clk 0:00:06]} 56.
b7 {[%clk 0:00:11.1]} 56... Rb1 {[%clk 0:00:05.1]} 57. c7 {[%clk 0:00:06.7]} 1-0

[Event "*** Titled Tuesday Blitz AM"]
[Site "Chess.com"]
[Date "2020.01.07"]
[Round "3"]
[White "olksuna"]
[Black "SHIVACalypso"]
[Result "1-0"]
[WhiteElo "2586"]
[BlackElo "2275"]
[TimeControl "180+2"]
[EndTime "9:39:21 PST"]
[Termination "olksuna won by resignation"]

1. c4 {[%clk 0:03:01.9]} 1... Nf6 {[%clk 0:02:58.9]} 2. Nc3 {[%clk 0:03:02.6]}
2... e5 {[%clk 0:02:56.1]} 3. g3 {[%clk 0:03:00.8]} 3... g6 {[%clk 0:02:56.3]}
4. Bg2 {[%clk 0:03:01.3]} 4... Bg7 {[%clk 0:02:57.7]} 5. Nf3 {[%clk 0:03:01.5]}
5... Nc6 {[%clk 0:02:59]} 6. O-O {[%clk 0:03:01.8]} 6... O-O {[%clk 0:02:57.9]}
7. d3 {[%clk 0:03:01.8]} 7... d6 {[%clk 0:02:57.1]} 8. Rb1 {[%clk 0:03:01.5]}
8... a5 {[%clk 0:02:58.4]} 9. a3 {[%clk 0:03:02.5]} 9... h6 {[%clk 0:02:59.7]}
10. b4 {[%clk 0:03:03.7]} 10... axb4 {[%clk 0:03:01.6]} 11. axb4 {[%clk
0:03:05.3]} 11... Be6 {[%clk 0:03:03.1]} 12. b5 {[%clk 0:02:54.3]} 12... Ne7
{[%clk 0:03:03.4]} 13. Bb2 {[%clk 0:02:55.7]} 13... Qd7 {[%clk 0:03:02.3]} 14.
Re1 {[%clk 0:02:54.5]} 14... Bh3 {[%clk 0:03:03.4]} 15. Bh1 {[%clk 0:02:55.5]}
15... Ng4 {[%clk 0:03:04.9]} 16. d4 {[%clk 0:02:37.9]} 16... exd4 {[%clk
0:02:50.1]} 17. Nxd4 {[%clk 0:02:38.8]} 17... Nf5 {[%clk 0:02:43.5]} 18. Nd5
{[%clk 0:02:28.8]} 18... Rae8 {[%clk 0:02:21.2]} 19. Nf4 {[%clk 0:02:12.7]}
19... Nxd4 {[%clk 0:02:08.1]} 20. Bxd4 {[%clk 0:02:14.6]} 20... Ne5 {[%clk
0:02:05.7]} 21. Bxb7 {[%clk 0:02:13.2]} 21... g5 {[%clk 0:01:59.2]} 22. Nh5
{[%clk 0:01:53.1]} 22... Bh8 {[%clk 0:01:30.1]} 23. Bxe5 {[%clk 0:01:33.9]}
23... Bxe5 {[%clk 0:01:26]} 24. e3 {[%clk 0:01:32.5]} 24... Qf5 {[%clk
0:01:11.4]} 25. Qf3 {[%clk 0:00:58.8]} 25... Bg4 {[%clk 0:00:56.3]} 26. Qxf5
{[%clk 0:00:52.5]} 26... Bxf5 {[%clk 0:00:58.2]} 27. f3 {[%clk 0:00:42.1]} 27...
Bxb1 {[%clk 0:00:57.8]} 28. Rxb1 {[%clk 0:00:44]} 28... f5 {[%clk 0:00:44.1]}
29. Kf2 {[%clk 0:00:36.7]} 29... Kh7 {[%clk 0:00:41.8]} 30. h3 {[%clk
0:00:29.7]} 30... Bc3 {[%clk 0:00:27.9]} 31. g4 {[%clk 0:00:27.6]} 31... Kg6
{[%clk 0:00:25.2]} 32. Ng3 {[%clk 0:00:25.6]} 32... fxg4 {[%clk 0:00:25.2]} 33.
hxg4 {[%clk 0:00:25.9]} 33... Bd2 {[%clk 0:00:25.9]} 34. Be4+ {[%clk 0:00:26.8]}
34... Kg7 {[%clk 0:00:21.5]} 35. Rh1 {[%clk 0:00:23.9]} 35... Bc3 {[%clk
0:00:15.8]} 36. Nf5+ {[%clk 0:00:24]} 36... Rxf5 {[%clk 0:00:16.6]} 37. Bxf5
{[%clk 0:00:25.9]} 37... Bb4 {[%clk 0:00:16.3]} 38. Be4 {[%clk 0:00:25.5]} 38...
Bc5 {[%clk 0:00:17.8]} 39. Rd1 {[%clk 0:00:24.1]} 39... Rf8 {[%clk 0:00:15.4]}
40. Rd5 {[%clk 0:00:23.2]} 40... Re8 {[%clk 0:00:15.9]} 41. Ke2 {[%clk
0:00:24.2]} 41... Kf6 {[%clk 0:00:16.3]} 42. Rf5+ {[%clk 0:00:24]} 42... Kg7
{[%clk 0:00:17.1]} 43. Rd5 {[%clk 0:00:23.1]} 43... Rb8 {[%clk 0:00:16.9]} 44.
Rd2 {[%clk 0:00:21.9]} 44... Rf8 {[%clk 0:00:18.2]} 45. Ra2 {[%clk 0:00:22.5]}
45... Re8 {[%clk 0:00:18.3]} 46. Ra6 {[%clk 0:00:23.8]} 46... Bb6 {[%clk
0:00:18]} 47. Kd3 {[%clk 0:00:24.2]} 47... Rf8 {[%clk 0:00:18.7]} 48. Ra3 {[%clk
0:00:18.8]} 48... Bc5 {[%clk 0:00:19.1]} 49. Ra2 {[%clk 0:00:17.8]} 49... Bb6
{[%clk 0:00:20.6]} 50. Bf5 {[%clk 0:00:18.4]} 50... Re8 {[%clk 0:00:21.3]} 51.
e4 {[%clk 0:00:19.8]} 51... Kf6 {[%clk 0:00:20.6]} 52. Rh2 {[%clk 0:00:19.5]}
52... Rh8 {[%clk 0:00:21.4]} 53. Ke2 {[%clk 0:00:18.1]} 53... Ke5 {[%clk
0:00:22.1]} 54. Rh1 {[%clk 0:00:19.4]} 54... Kf4 {[%clk 0:00:23.2]} 55. Rd1
{[%clk 0:00:20.2]} 55... Ke5 {[%clk 0:00:24.5]} 56. Rd5+ {[%clk 0:00:21.4]}
56... Kf6 {[%clk 0:00:25.6]} 57. Bd7 {[%clk 0:00:22.9]} 57... Rd8 {[%clk
0:00:25.3]} 58. Bc6 {[%clk 0:00:24]} 58... Kg7 {[%clk 0:00:25.7]} 59. e5 {[%clk
0:00:24]} 59... Bc5 {[%clk 0:00:25.2]} 60. Kd3 {[%clk 0:00:23.3]} 60... Rf8
{[%clk 0:00:24.8]} 61. exd6 {[%clk 0:00:23.1]} 61... Rxf3+ {[%clk 0:00:22.8]}
62. Kd2 {[%clk 0:00:21.5]} 62... cxd6 {[%clk 0:00:21.5]} 63. Rxc5 {[%clk
0:00:21.5]} 63... Rf2+ {[%clk 0:00:21.5]} 64. Ke3 {[%clk 0:00:22.6]} 64... Rf4
{[%clk 0:00:21.2]} 65. Rd5 {[%clk 0:00:20.2]} 65... Rxc4 {[%clk 0:00:22.1]} 66.
Rxd6 {[%clk 0:00:20.3]} 66... Rxg4 {[%clk 0:00:22.7]} 67. b6 {[%clk 0:00:21.3]}
67... Rb4 {[%clk 0:00:24.6]} 68. b7 {[%clk 0:00:22.2]} 68... g4 {[%clk
0:00:25.6]} 69. Rd8 {[%clk 0:00:23]} 69... Rb3+ {[%clk 0:00:25.5]} 70. Kf4
{[%clk 0:00:22.9]} 1-0